lending/lending_fUSD_20240111
["ID","MTS","AMOUNT","RATE_DAILY","PERIOD"]
[311181491,1704971923476,5000.0,0.00037,3]
[311181492,1704971924133,510.49315058,0.00037006,4]
[311181493,1704971924270,2000.0,0.00037073,2]
[311181494,1704971928116,500.1246978,0.00037006,4]
[311181495,1704971932308,7500.0,0.00037779,2]
[311181496,1704971932843,500.0,0.00037004,4]
[311181497,1704971933073,500.0,0.00037278,4]
[311181498,1704971933420,500.0,0.00037552,4]
[311181499,1704971933716,500.0,0.00037826,4]
[311181500,1704971934898,500.0,0.00037006,4]
[311181501,1704971935750,1000.0,0.00037213,4]
[311181502,1704971935849,500.0,0.00037006,4]
[311181503,1704971936126,500.0,0.0003728,4]
[311181504,1704971936397,500.0,0.00037554,4]
[311181505,1704971936682,644.70163564,0.00037828,4]
[311181506,1704971940257,2000.0,0.00037073,2]
[311181507,1704971943024,500.0,0.00037006,4]
[311181508,1704971943243,512.61423926,0.0003728,4]
[311181509,1704971945490,5000.0,0.00037,3]
[311181510,1704971947960,500.0,0.00037004,4]
[311181511,1704971948472,500.0,0.00037278,4]
[311181512,1704971948755,500.0,0.00037552,4]
[311181513,1704971949031,290.44764376,0.00037826,4]
[311181514,1704971951753,500.0,0.00037006,4]
[311181515,1704971952026,500.0,0.0003728,4]
[311181516,1704971952300,344.09328521,0.00037554,4]
[311181522,1704971953486,512.0551158,0.00037006,4]
[311181523,1704971953747,1000.0,0.00037213,4]
[311181524,1704971957000,500.0,0.00037006,4]
[311181525,1704971958268,2000.0,0.0003728,2]
[311181526,1704971958695,314.68200408,0.00037006,4]
[311181527,1704971959003,500.0,0.00037004,4]
[311181528,1704971959472,500.0,0.00037278,4]
[311181529,1704971959574,500.0,0.00037552,4]
[311181530,1704971960011,500.0,0.00037006,4]
[311181531,1704971960216,213.7331786,0.00037826,4]
[311181532,1704971963627,5000.0,0.00037,3]
[311181533,1704971963693,521.15714909,0.00037006,4]
[311181534,1704971964882,511.60222522,0.00037006,4]
[311181535,1704971964914,500.0,0.00037004,4]
[311181536,1704971965196,500.0,0.00037278,4]
[311181537,1704971965476,500.0,0.00037552,4]
[311181538,1704971965787,500.0,0.00037826,4]
[311181539,1704971966695,550.43296958,0.00037006,4]
[311181540,1704971970916,614.71114145,0.00037006,4]
[311181541,1704971974252,2000.0,0.0003728,2]
[311181542,1704971975752,1000.0,0.00037213,4]
[311181543,1704971975907,520.81981082,0.00037006,4]
[311181544,1704971976574,500.0,0.00037006,4]
[311181545,1704971977876,500.0,0.00037197,4]
[311181546,1704971978124,500.0,0.00037471,4]
[311181547,1704971978418,500.0,0.00037745,4]
[311181548,1704971978446,639.85686267,0.00037006,4]
[311181549,1704971978617,504.9122826,0.00037006,4]
[311181550,1704971979645,209.14960368,0.00037913,2]
[311181551,1704971981482,5000.0,0.00037,3]
[311181552,1704971981725,500.0,0.00037004,4]
[311181553,1704971982034,500.0,0.00037278,4]
[311181554,1704971982343,500.0,0.00037552,4]
[311181555,1704971982610,500.0,0.00037826,4]
[311181556,1704971986283,500.0,0.00037006,4]
[311181557,1704971989616,507.68067262,0.00037006,4]
[311181558,1704971992263,2000.0,0.0003728,2]
[311181559,1704971993761,1000.0,0.00037213,4]
[311181560,1704971995220,500.0,0.00037006,4]
[311181561,1704971995625,500.0,0.00037006,4]
[311181562,1704971995834,500.0,0.00037006,4]
[311181563,1704971996970,500.0,0.00037006,4]
[311181564,1704971998191,500.0,0.00037006,4]
[311181565,1704971999530,4035.41096273,0.00037,3]
[311181566,1704972001468,507.10802586,0.00037507,8]
[311181567,1704972001801,500.0,0.00037006,4]
[311181568,1704972003127,500.0,0.00037006,4]
[311181569,1704972003229,500.0,0.00037006,4]
[311181570,1704972003791,506.13871268,0.00037006,4]
[311181571,1704972005401,435.44010911,0.00037006,4]
[311181572,1704972007570,500.0,0.00037006,4]
[311181573,1704972008268,2000.0,0.0003728,2]
[311181574,1704972009633,500.0,0.00037006,4]
[311181575,1704972011764,1000.0,0.00037212,4]
[311181576,1704972012247,19673.0,0.00037398,2]
[311181577,1704972016597,506.009353,0.00037006,4]
[311181578,1704972017421,500.0,0.00037006,4]
[311181579,1704972018728,572.06,0.00037006,4]
[311181580,1704972019012,572.06,0.0003728,4]
[311181581,1704972019283,572.06,0.00037554,4]
[311181582,1704972019539,572.06,0.00037828,4]
[311181583,1704972020937,511.71107385,0.00037006,4]
[311181584,1704972024264,2000.0,0.00037,2]
[311181585,1704972026191,279.77,0.00037456,2]
[311181586,1704972026535,500.0,0.00037006,4]
[311181587,1704972028249,500.0,0.00037004,4]
[311181588,1704972028358,506.24641375,0.00037006,4]
[311181589,1704972028504,624.21899722,0.00037278,4]
[311181590,1704972029760,1000.0,0.00037212,4]
[311181591,1704972030665,500.0,0.00037006,4]
[311181592,1704972030770,516.27761059,0.00037006,4]
[311181593,1704972032532,519.52,0.00037474,2]
[311181594,1704972032917,575.4577599,0.00037006,4]
[311181595,1704972033637,518.4062089,0.00037006,4]
[311181596,1704972035808,403.04167698,0.00037006,4]
[311181597,1704972036750,500.0,0.00037004,4]
[311181598,1704972036955,500.0,0.00037278,4]
[311181599,1704972037217,500.0,0.00037552,4]
[311181600,1704972037505,445.58650204,0.00037826,4]
[311181601,1704972038987,514.14245196,0.00037006,4]
[311181602,1704972040951,518.41387045,0.00037006,4]
[311181603,1704972041740,447.70819166,0.00037006,4]
[311181604,1704972043432,270.42408831,0.00037006,4]
[311181605,1704972045479,500.0,0.00037006,4]
[311181606,1704972045776,510.12819379,0.00037006,4]
[311181607,1704972045865,517.69100566,0.00037006,4]
[311181608,1704972048124,1000.0,0.00036,15]
[311181609,1704972048264,2000.0,0.00037,2]
[311181610,1704972048407,500.0,0.00037006,4]
[311181611,1704972049426,468.50456272,0.00037006,4]
[311181612,1704972050908,500.0,0.00037006,4]
[311181613,1704972051765,1000.0,0.00037212,4]
[311181614,1704972051978,510.26553541,0.00037006,4]
[311181615,1704972054088,516.85342365,0.00037006,4]
[311181616,1704972056839,500.0,0.00037006,4]
[311181617,1704972058810,500.0,0.00037006,4]
[311181618,1704972059028,507.64218258,0.00037006,4]
[311181619,1704972059098,436.12805093,0.0003728,4]
[311181620,1704972061439,500.0,0.00037197,4]
[311181621,1704972061611,173.88023782,0.00037006,4]
[311181622,1704972061716,500.0,0.00037471,4]
[311181623,1704972062106,370.20760172,0.00037745,4]
[311181624,1704972064477,500.0,0.00037004,4]
[311181625,1704972064745,500.0,0.00037278,4]
[311181626,1704972065017,500.0,0.00037552,4]
[311181627,1704972065286,500.0,0.00037826,4]
[311181628,1704972066284,2000.0,0.00037,2]
[311181629,1704972067003,1000.0,0.00037507,10]
[311181630,1704972071766,1000.0,0.00037212,4]
[311181631,1704972074233,527.40721067,0.00037006,4]
[311181632,1704972075891,500.0,0.00037004,4]
[311181633,1704972076175,500.0,0.00037278,4]
[311181634,1704972076400,509.66390839,0.00037006,4]
[311181635,1704972076464,327.50585246,0.00037552,4]
[311181636,1704972076588,509.39115163,0.00037006,4]
[311181637,1704972082602,522.82023393,0.00037006,4]
[311181638,1704972082743,500.0,0.00037006,4]
[311181639,1704972084285,2000.0,0.00037006,2]
[311181640,1704972084726,506.9818757,0.00037006,4]
[311181641,1704972087523,516.26592459,0.00037006,4]
[311181642,1704972087773,1000.0,0.00037212,4]
[311181643,1704972103831,1000.0,0.00037212,4]
[311181644,1704972106292,2000.0,0.00037006,2]
[311181645,1704972108087,483.39823882,0.00037006,4]
[311181646,1704972108301,500.0,0.00037004,4]
[311181647,1704972108622,500.0,0.00037278,4]
[311181648,1704972108912,500.0,0.00037552,4]
[311181649,1704972110205,402.2,0.00037826,4]
[311181650,1704972112113,500.0,0.00037006,4]
[311181651,1704972123778,1000.0,0.00037212,4]
[311181652,1704972125648,1000.0,0.00037,30]
[311181653,1704972125718,500.0,0.00037006,4]
[311181654,1704972126701,1000.0,0.00037507,10]
[311181655,1704972133973,291.19,0.00037439,2]
[311181656,1704972134381,500.0,0.00037006,4]
[311181657,1704972136827,154.46462245,0.00037296,7]
[311181658,1704972137313,154.46462245,0.00037898,7]
[311181659,1704972138047,500.0,0.00037006,4]
[311181660,1704972140378,159.8,0.00035,2]
[311181661,1704972141779,1000.0,0.00037212,4]
[311181662,1704972145723,514.00860965,0.00037006,4]
[311181663,1704972146985,167.63778095,0.00037288,7]
[311181664,1704972149589,150.39187773,0.00037806,7]
[311181665,1704972155416,500.0,0.00037006,4]
[311181666,1704972160388,515.64368503,0.00037006,4]
[311181667,1704972161774,1000.0,0.00037212,4]
[311181668,1704972167120,500.0,0.00037004,4]
[311181669,1704972167385,500.0,0.00037278,4]
[311181670,1704972167663,305.31,0.00037552,4]
[311181671,1704972169134,514.12560855,0.00037006,4]
[311181672,1704972175238,68106.70632813,0.00038,30]
[311181673,1704972179244,500.0,0.00037006,4]
[311181674,1704972181696,500.0,0.00037507,8]
[311181675,1704972181777,1000.0,0.00037212,4]
[311181676,1704972183731,340.00332471,0.00037006,4]
[311181677,1704972186370,373.13165919,0.00037006,4]
[311181678,1704972190360,200.0,0.00037934,2]
[311181679,1704972192032,200.0,0.00037934,10]
[311181680,1704972198737,526.43407107,0.00037006,4]
[311181681,1704972201356,511.89141666,0.00037006,4]
[311181682,1704972201788,1000.0,0.00037212,4]
[311181683,1704972202476,570.02548031,0.00037006,4]
[311181684,1704972203399,500.0,0.00037006,4]
[311181685,1704972204348,500.0,0.00037006,4]
[311181686,1704972207386,2418.3,0.00037617,2]
[311181687,1704972212662,500.0,0.00037006,4]
[311181688,1704972219782,1000.0,0.00037212,4]
[311181689,1704972220891,159.65,0.00037876,2]
[311181690,1704972220985,558.71741405,0.00037006,4]
[311181691,1704972221193,522.29267751,0.00037006,4]
[311181692,1704972223436,500.0,0.00037006,4]
[311181693,1704972225867,500.0,0.00037006,4]
[311181694,1704972232732,1446.81546239,0.00037685,2]
[311181695,1704972234267,500.0,0.00037006,4]
[311181696,1704972236300,500.0,0.00037006,4]
[311181697,1704972236588,500.0,0.0003728,4]
[311181698,1704972236885,500.0,0.00037554,4]
[311181699,1704972237175,500.0,0.00037828,4]
[311181700,1704972239782,1000.0,0.00037212,4]
[311181701,1704972244232,204.0,0.0003793,2]
[311181702,1704972245374,262.43127337,0.00037006,4]
[311181703,1704972249610,475.45616052,0.00037006,4]
[311181704,1704972252497,500.0,0.00037006,30]
[311181705,1704972252795,462.32144183,0.0003728,30]
[311181706,1704972253764,246.02356995,0.00037006,4]
[311181707,1704972255367,151.44,0.00037395,2]
[311181708,1704972255792,169.57049598,0.00037006,4]
[311181709,1704972257802,1000.0,0.00037212,4]
[311181710,1704972261625,505.20826197,0.00037006,4]
[311181711,1704972267956,500.0,0.00037006,4]
[311181712,1704972271486,334.51166662,0.00037507,3]
[311181714,1704972273784,1000.0,0.00037212,4]
[311181715,1704972276778,512.82132748,0.00037006,4]
[311181716,1704972279041,450.00994662,0.00037006,4]
[311181717,1704972283655,510.50202187,0.00037006,4]
[311181718,1704972284528,250.0,0.00037599,111]
[311181719,1704972284607,500.0,0.00037006,4]
[311181720,1704972291225,509.29427978,0.00037006,4]
[311181721,1704972294271,431.3,0.00035672,2]
[311181722,1704972294616,431.3,0.00037935,2]
[311181723,1704972295787,1000.0,0.00037215,4]
[311181724,1704972311770,19673.0,0.00037398,2]
[311181725,1704972314001,500.0,0.00037006,4]
[311181726,1704972317993,1000.0,0.00037215,4]
[311181727,1704972318627,500.0,0.00037,2]
[311181728,1704972319025,549.15242336,0.00037006,4]
[311181729,1704972319569,500.0,0.00037006,4]
[311181730,1704972320005,172.38158,0.0003785,2]
[311181731,1704972320089,172.38158,0.00038,2]
[311181732,1704972320203,172.38158,0.0003776,2]
[311181733,1704972330880,521.83518738,0.00037006,4]
[311181734,1704972335704,523.56163334,0.00037006,4]
[311181735,1704972335782,1000.0,0.00037215,4]
[311181736,1704972339809,526.05761371,0.00037006,4]
[311181737,1704972342861,182.52,0.00034654,2]
[311181738,1704972348850,200.0,0.00037006,4]
[311181739,1704972353809,1000.0,0.00037215,4]
[311181740,1704972354926,500.0,0.00037006,4]
[311181741,1704972361718,519.43083532,0.00037006,4]
[311181742,1704972364092,500.0,0.00037006,4]
[311181743,1704972364636,570.59302515,0.00037006,4]
[311181744,1704972365679,650.91,0.00037618,15]
[311181745,1704972369800,1000.0,0.00037215,4]
[311181746,1704972372616,349.99919992,0.00037006,4]
[311181747,1704972374651,185.42370515,0.00037006,4]
[311181748,1704972379342,500.0,0.00037006,4]
[311181749,1704972381909,511.82786246,0.00037006,4]
[311181750,1704972385320,4681.93584221,0.000378,2]
[311181751,1704972425097,-509.70833205,0.00037006,4]
[311181752,1704972425118,-234.53621146,0.00037006,4]
[311181754,1704972448135,-289.0,0.00037,2]
[311181755,1704972448156,-26.21026495,0.00037,2]
[311181756,1704972471164,-1000.0,0.00036999,4]
[311181757,1704972471184,-2689.78973505,0.00037,2]
[311181758,1704972471208,-500.0,0.00037,2]
[311181759,1704972471229,-294.39923829,0.00037006,4]
[311181760,1704972471250,-500.0,0.00037006,4]
[311181761,1704972471272,-640.46905231,0.00037006,4]
[311181762,1704972471296,-509.22877536,0.00037006,4]
[311181763,1704972471317,-500.0,0.00037006,4]
[311181764,1704972471518,-500.0,0.00037006,4]
[311181765,1704972471538,-506.77233798,0.00037006,4]
[311181766,1704972471559,-505.42162162,0.00037006,4]
[311181767,1704972471582,-500.0,0.00037006,4]
[311181768,1704972471602,-505.33066123,0.00037006,4]
[311181769,1704972471623,-553.58027694,0.00037006,4]
[311181770,1704972471647,-500.0,0.00037006,4]
[311181771,1704972471668,-509.12849823,0.00037006,4]
[311181772,1704972471690,-364.29991629,0.00037006,4]
[311181773,1704972471710,-508.47335401,0.00037006,4]
[311181774,1704972471731,-513.33319404,0.00037006,4]
[311181775,1704972471752,-500.0,0.00037006,4]
[311181776,1704972471772,-510.90718712,0.00037006,4]
[311181777,1704972471793,-503.20674237,0.00037006,4]
[311181778,1704972471814,-509.63319009,0.00037006,4]
[311181779,1704972471835,-518.41214112,0.00037006,4]
[311181780,1704972471855,-505.71180855,0.00037006,4]
[311181781,1704972471876,-494.62428169,0.00037006,4]
[311181782,1704972471896,-587.72760618,0.00037006,4]
[311181783,1704972471915,-519.78695223,0.00037006,4]
[311181784,1704972471936,-507.99390645,0.00037006,4]
[311181785,1704972471957,-569.82507827,0.00037507,8]
[311181786,1704972471979,-1000.0,0.00037507,10]
[311181787,1704972472000,-584.38,0.00037564,2]
[311181788,1704972472021,-150.91204937,0.00037661,7]
[311181789,1704972472042,-158.79,0.000377,3]
[311181790,1704972472063,-158.79,0.000377,3]
[311181791,1704972472085,-158.79,0.000377,3]
[311181792,1704972472108,-158.79,0.000377,3]
[311181793,1704972472129,-158.79,0.000377,3]
[311181794,1704972472150,-158.79,0.000377,3]
[311181795,1704972472172,-158.79,0.000377,3]
[311181796,1704972472193,-158.79,0.000377,3]
[311181797,1704972472215,-158.79,0.000377,3]
[311181798,1704972472236,-158.79,0.000377,3]
[311181799,1704972472258,-158.79,0.000377,3]
[311181800,1704972472279,-158.79,0.000377,3]
[311181801,1704972472301,-158.79,0.000377,3]
[311181802,1704972472323,-158.79,0.000377,3]
[311181803,1704972472346,-158.79,0.000377,3]
[311181804,1704972472367,-158.79,0.000377,3]
[311181805,1704972472389,-158.79,0.000377,3]
[311181806,1704972472410,-158.79,0.000377,3]
[311181807,1704972472432,-158.79,0.000377,3]
[311181808,1704972472453,-158.79,0.000377,3]
[311181809,1704972472472,-43112.76249702,0.000378,2]
[311181810,1704972474750,514.22967581,0.00037006,4]
[311181811,1704972475012,500.0,0.00037006,4]
[311181812,1704972481794,550.69144441,0.00037006,4]
[311181813,1704972482959,500.0,0.00037006,4]
[311181814,1704972483778,500.0,0.00037006,4]
[311181815,1704972484302,1000.0,0.00037215,4]
[311181816,1704972485797,300.0,0.00037216,2]
[311181817,1704972489287,508.58814085,0.00037006,4]
[311181818,1704972491007,1060.36886669,0.00037215,4]
[311181819,1704972491478,517.1652845,0.00037006,4]
[311181820,1704972493775,509.46865409,0.00037006,4]
[311181821,1704972494640,1656.07949933,0.00037215,4]
[311181822,1704972495739,190.76603793,0.00037215,4]
[311181823,1704972496402,519.40113458,0.00037006,4]
[311181824,1704972496511,529.55562069,0.00037006,4]
[311181825,1704972502305,1000.0,0.00037215,4]
[311181826,1704972504124,1000.0,0.000374,2]
[311181827,1704972504790,1537.497391,0.000364,2]
[311181828,1704972507750,506.04032908,0.00037006,4]
[311181829,1704972507784,261.11,0.00034654,2]
[311181830,1704972507995,261.11,0.00035632,2]
[311181831,1704972508195,261.11,0.00036611,2]
[311181832,1704972508406,261.11,0.00037589,2]
[311181833,1704972512320,500.0,0.00037006,4]
[311181834,1704972513875,4866.7287,0.00036906,14]
[311181835,1704972513986,518.248383,0.00037006,4]
[311181836,1704972514804,513.9628297,0.00037006,4]
[311181837,1704972516402,500.0,0.00037006,4]
[311181838,1704972516663,500.0,0.0003728,4]
[311181839,1704972516944,500.0,0.00037554,4]
[311181840,1704972517209,500.0,0.00037828,4]
[311181841,1704972521218,-500.0,0.00038019,4]
[311181842,1704972521249,-150.39187774,0.00038075,7]
[311181843,1704972521276,-167.0,0.00038078,2]
[311181844,1704972521303,-150.99,0.00038093,30]
[311181845,1704972521331,-151.40111,0.00038098,8]
[311181846,1704972521359,-500.0,0.00038102,4]
[311181847,1704972521386,-572.06,0.00038102,4]
[311181848,1704972521414,-500.0,0.00038102,4]
[311181849,1704972521444,-500.0,0.00038102,4]
[311181850,1704972521474,-150.00000001,0.00038109,2]
[311181851,1704972521501,-180.0,0.00038119,2]
[311181852,1704972521527,-5205.52271804,0.00038142,2]
[311181853,1704972521552,-1446.81546239,0.00038145,2]
[311181854,1704972521579,-172.38158,0.0003816,2]
[311181855,1704972521606,-151.0,0.00038169,7]
[311181856,1704972521635,-159.46,0.00038182,2]
[311181857,1704972521665,-151.40111,0.00038198,8]
[311181858,1704972521696,-158.46,0.00038236,2]
[311181859,1704972521722,-163.804845,0.00038256,7]
[311181860,1704972521749,-500.0,0.00038293,4]
[311181861,1704972521777,-151.40111,0.00038298,8]
[311181862,1704972521803,-150.91204937,0.00038325,7]
[311181863,1704972521829,-160.38007593,0.00038345,7]
[311181864,1704972521855,-666.0,0.00038356,2]
[311181865,1704972521886,-500.0,0.00038376,4]
[311181866,1704972521912,-572.06,0.00038376,4]
[311181867,1704972521938,-500.0,0.00038376,4]
[311181868,1704972521966,-500.0,0.00038376,4]
[311181869,1704972521996,-151.40111,0.00038398,8]
[311181870,1704972522022,-8000.0,0.000384,2]
[311181871,1704972522048,-1000.0,0.000384,2]
[311181872,1704972522075,-159.46,0.00038437,2]
[311181873,1704972522103,-151.40111,0.00038498,8]
[311181874,1704972522129,-657.12887245,0.000385,2]
[311181875,1704972524317,1000.0,0.00037215,4]
[311181876,1704972526030,515.30598192,0.00037006,4]
[311181877,1704972532522,529.66122359,0.00037006,4]
[311181878,1704972533312,512.5,0.00037006,4]
[311181879,1704972536114,512.24221463,0.00037006,4]
[311181880,1704972536486,500.0,0.00037006,4]
[311181881,1704972541441,657.12887245,0.000385,2]
[311181882,1704972541563,-500.0,0.00038567,4]
[311181883,1704972541586,-261.11,0.00038568,2]
[311181884,1704972541609,-5737.78995102,0.00038583,5]
[311181885,1704972541631,-151.40111,0.00038598,8]
[311181886,1704972541651,-500.0,0.00038599,2]
[311181887,1704972541671,-500.0,0.00038599,2]
[311181888,1704972541691,-500.0,0.00038599,4]
[311181889,1704972541712,-500.0,0.00038599,4]
[311181890,1704972541733,-500.0,0.00038599,4]
[311181891,1704972541753,-642.34049056,0.0003865,4]
[311181892,1704972541773,-572.06,0.0003865,4]
[311181893,1704972541793,-500.0,0.0003865,4]
[311181894,1704972541813,-500.0,0.0003865,4]
[311181895,1704972541835,-159.46,0.00038691,2]
[311181896,1704972541858,-151.40111,0.00038698,8]
[311181897,1704972541878,-838.1248,0.00038699,2]
[311181898,1704972541909,-158.79,0.000387,3]
[311181899,1704972541939,-158.79,0.000387,3]
[311181900,1704972541962,-158.79,0.000387,3]
[311181901,1704972541983,-158.79,0.000387,3]
[311181902,1704972542005,-158.79,0.000387,3]
[311181903,1704972542026,-158.79,0.000387,3]
[311181904,1704972542048,-158.79,0.000387,3]
[311181905,1704972542070,-158.79,0.000387,3]
[311181906,1704972542092,-158.79,0.000387,3]
[311181907,1704972542113,-158.79,0.000387,3]
[311181908,1704972542135,-158.79,0.000387,3]
[311181909,1704972542158,-158.79,0.000387,3]
[311181910,1704972542179,-158.79,0.000387,3]
[311181911,1704972542201,-158.79,0.000387,3]
[311181912,1704972542222,-158.79,0.000387,3]
[311181913,1704972542244,-158.79,0.000387,3]
[311181914,1704972542269,-158.79,0.000387,3]
[311181915,1704972542293,-158.79,0.000387,3]
[311181916,1704972542316,-158.79,0.000387,3]
[311181917,1704972542343,-158.79,0.000387,3]
[311181918,1704972542365,-219.76497818,0.00038724,2]
[311181919,1704972542388,-151.40111,0.00038798,8]
[311181920,1704972542412,-6816.49533736,0.000388,4]
[311181921,1704972542435,-291.19,0.00038824,2]
[311181922,1704972542458,-500.0,0.00038841,4]
[311181923,1704972542479,-500.0,0.00038873,2]
[311181924,1704972542501,-500.0,0.00038873,4]
[311181925,1704972542522,-500.0,0.00038873,4]
[311181926,1704972542542,-500.0,0.00038873,4]
[311181927,1704972542565,-151.40111,0.00038898,8]
[311181928,1704972542589,-160.38007593,0.00038919,7]
[311181929,1704972542611,-500.0,0.00038923,4]
[311181930,1704972542632,-500.0,0.00038923,5]
[311181931,1704972542656,-1461.57,0.00038923,4]
[311181932,1704972542678,-500.0,0.00038923,4]
[311181933,1704972542700,-500.0,0.00038923,4]
[311181934,1704972542721,-500.0,0.00038923,4]
[311181935,1704972542744,-500.0,0.00038923,4]
[311181936,1704972542764,-320.95,0.00038923,4]
[311181937,1704972542785,-572.06,0.00038924,4]
[311181938,1704972542807,-500.0,0.00038924,4]
[311181939,1704972542828,-500.0,0.00038924,4]
[311181940,1704972542851,-159.46,0.00038946,2]
[311181941,1704972542873,-158.46,0.00038958,2]
[311181942,1704972542893,-281.73212903,0.0003898,2]
[311181943,1704972542916,-150.34,0.0003899,2]
[311181944,1704972542942,-151.40111,0.00038998,8]
[311181945,1704972542963,-150.0,0.00038999,2]
[311181946,1704972542983,-500.0,0.00038999,4]
[311181947,1704972543006,-500.0,0.00038999,4]
[311181948,1704972543026,-500.0,0.00038999,4]
[311181949,1704972543051,-76418.76459445,0.00039,6]
[311181950,1704972543093,509.94573826,0.00037006,4]
[311181955,1704972546310,1000.0,0.00037215,4]
[311181956,1704972551047,500.0,0.00037006,4]
[311181957,1704972558132,421.95420091,0.00037006,4]
[311181958,1704972559408,657.12887245,0.000385,2]
[311181959,1704972560809,510.72133547,0.00037006,4]
[311181960,1704972563159,504.74345857,0.00037006,4]
[311181961,1704972564035,510.36754333,0.00037006,4]
[311181962,1704972564321,1000.0,0.00037215,4]
[311181963,1704972565470,310.47840943,0.00037006,4]
[311181966,1704972570660,508.72412841,0.00037006,4]
[311181968,1704972574293,500.0,0.00037006,4]
[311181969,1704972575260,631.47908991,0.00037006,4]
[311181970,1704972576040,500.0,0.00037006,4]
[311181971,1704972578267,514.40035851,0.00037006,4]
[311181972,1704972579478,511.22959198,0.00037006,4]
[311181973,1704972581416,657.12887245,0.000385,2]
[311181974,1704972581592,174.71,0.00038419,2]
[311181975,1704972584317,1000.0,0.00037215,4]
[311181976,1704972587050,506.07941159,0.00037006,4]
[311181977,1704972587365,500.0,0.00037006,4]
[311181981,1704972594753,507.1161428,0.00037006,4]
[311181982,1704972596385,515.75460881,0.00037006,4]
[311181983,1704972596945,500.0,0.00037006,4]
[311181984,1704972601390,623.42273919,0.00037006,2]
[311181985,1704972601433,401.59389017,0.00037507,8]
[311181986,1704972602316,1000.0,0.00037215,4]
[311181987,1704972603415,657.12887245,0.000385,2]
[311181988,1704972604083,512.79386069,0.00037006,4]
[311181989,1704972606514,516.5339259,0.00037006,4]
[311181990,1704972609060,578.754,0.00037449,2]
[311181991,1704972609663,515.89090034,0.00037006,4]
[311181995,1704972615349,540.31643727,0.00037006,4]
[311181996,1704972615810,4142.883,0.00037598,2]
[311181997,1704972618209,944.0,0.00037598,2]
[311181998,1704972620547,834.0,0.00037598,2]
[311181999,1704972623413,751.45028353,0.000385,2]
[311182000,1704972624326,1000.0,0.00037215,4]
[311182001,1704972629881,1234.0,0.00037598,2]
[311182016,1704972631596,-273.6726,0.00037216,30]
[311182017,1704972631608,-303.0631,0.00037216,30]
[311182018,1704972631931,402.706,0.00037598,2]
[311182019,1704972633908,-282.07001,0.00037216,30]
[311182020,1704972633921,-92676.18429,0.00037216,30]
[311182021,1704972633931,-8696.01458648,0.00037216,7]
[311182022,1704972633941,-500.0,0.00038599,4]
[311182023,1704972633951,-500.0,0.00038599,4]
[311182024,1704972633962,-500.0,0.00038873,4]